bitfinex-derivatives/quotes_SOLF0:USTF0_20260306
["timestamp","ask_amount","ask_price","bid_price","bid_amount"]
[1772793919770,10.272,87.613,87.574,3.69414915]
[1772793920074,3.38750793,87.614,87.574,3.69414915]
[1772793920572,3.38750793,87.614,87.58,3.02963155]
[1772793921069,3.38750793,87.614,87.58,6.7237807]
[1772793922374,3.39614143,87.613,87.58,6.7237807]
[1772793925279,3.39614143,87.613,87.58,3.69414915]
[1772793925479,3.39614143,87.613,87.58,6.7237807]
[1772793925881,3.39614143,87.613,87.581,3.69414915]
[1772793927182,3.39091007,87.625,87.59,3.02963155]
[1772793927376,3.39091007,87.623,87.59,3.02963155]
[1772793927576,3.39091007,87.623,87.58,3.02963155]
[1772793927775,21.28172893,87.669,87.58,3.02963155]
[1772793927776,3.39091007,87.615,87.58,3.02963155]
[1772793928377,3.40564788,87.607,87.58,3.02963155]
[1772793928683,3.40564788,87.629,87.571,3.69414915]
[1772793928883,3.40564788,87.627,87.58,3.02963155]
[1772793929083,3.40564788,87.625,87.58,3.02963155]
[1772793929286,3.40564788,87.623,87.58,3.02963155]
[1772793929484,3.40564788,87.621,87.58,3.02963155]
[1772793929688,3.40564788,87.619,87.58,3.02963155]
[1772793929882,10.272,87.616,87.58,3.02963155]
[1772793930189,10.272,87.616,87.581,3.69414915]
[1772793930785,10.272,87.614,87.581,3.69414915]
[1772793932885,3.31403213,87.619,87.581,3.69414915]
[1772793933381,3.31403213,87.619,87.583,3.63197118]
[1772793933686,10.271,87.628,87.591,3.63197118]
[1772793933986,8.82692059,87.627,87.591,3.63197118]
[1772793934280,10.271,87.628,87.591,3.63197118]
[1772793934486,8.82745259,87.627,87.591,3.63197118]
[1772793934785,13.59325366,87.628,87.591,3.63197118]
[1772793935187,10.271,87.626,87.591,3.63197118]
[1772793937790,10.27,87.633,87.592,3.63197118]
[1772793937989,8.82774,87.632,87.592,3.63197118]
[1772793938185,8.82774,87.631,87.592,3.63197118]
[1772793938489,10.27,87.633,87.592,3.63197118]
[1772793938689,8.82917112,87.632,87.592,3.63197118]
[1772793938890,8.82917112,87.631,87.594,3.63197118]
[1772793939090,13.59477829,87.633,87.594,3.63197118]
[1772793939386,8.82936375,87.632,87.594,3.63197118]
[1772793939589,13.59477829,87.633,87.594,3.63197118]
[1772793939590,8.82936375,87.631,87.594,3.63197118]
[1772793939781,8.82936375,87.63,87.594,3.63197118]
[1772793939985,13.59477829,87.633,87.594,3.63197118]
[1772793940285,8.83077883,87.632,87.594,3.63197118]
[1772793940591,8.83077883,87.631,87.596,3.63197118]
[1772793940884,8.83077883,87.63,87.596,3.63197118]
[1772793941190,13.59477829,87.633,87.596,3.63197118]
[1772793941390,8.83459686,87.632,87.596,3.63197118]
[1772793941591,8.83459686,87.631,87.596,3.63197118]
[1772793941890,13.59477829,87.633,87.596,3.63197118]
[1772793942986,8.83641715,87.632,87.596,3.63197118]
[1772793943192,13.59477829,87.633,87.596,3.63197118]
[1772793943389,8.83595896,87.632,87.596,3.63197118]
[1772793943693,13.59477829,87.633,87.596,3.63197118]
[1772793944397,8.83817935,87.632,87.596,3.63197118]
[1772793944593,13.59477829,87.633,87.596,3.63197118]
[1772793944594,12.16482212,87.631,87.596,3.63197118]
[1772793944890,3.32664277,87.631,87.596,3.63197118]
[1772793946496,8.83734001,87.63,87.596,3.63197118]
[1772793946796,8.83734001,87.629,87.596,3.63197118]
[1772793946997,8.83734001,87.628,87.596,3.63197118]
[1772793947196,8.83734001,87.627,87.596,3.63197118]
[1772793947397,3.32664277,87.631,87.596,3.63197118]
[1772793947697,8.83694462,87.63,87.596,3.63197118]
[1772793947899,8.83694462,87.629,87.596,3.63197118]
[1772793948098,8.83694462,87.628,87.596,3.63197118]
[1772793948297,8.83694462,87.627,87.596,3.63197118]
[1772793948497,3.32664277,87.631,87.596,3.63197118]
[1772793948699,8.83660037,87.63,87.596,3.63197118]
[1772793948998,8.83660037,87.629,87.596,3.63197118]
[1772793949197,8.83660037,87.628,87.596,3.63197118]
[1772793949400,8.83660037,87.627,87.596,3.63197118]
[1772793949602,3.32664277,87.631,87.596,3.63197118]
[1772793949901,8.83630382,87.63,87.596,3.63197118]
[1772793950097,8.83630382,87.629,87.596,3.63197118]
[1772793950297,8.83630382,87.628,87.596,3.63197118]
[1772793950493,8.83630382,87.627,87.596,3.63197118]
[1772793950695,3.32664277,87.631,87.601,3.63197118]
[1772793950896,159.547,87.753,87.611,3.63197118]
[1772793950897,3.32796999,87.653,87.611,3.63197118]
[1772793951201,3.32796999,87.651,87.62,3.02963155]
[1772793951399,8.83466983,87.65,87.62,3.02963155]
[1772793951594,3.32796999,87.651,87.62,3.02963155]
[1772793951793,8.82930389,87.65,87.62,3.02963155]
[1772793951997,3.32796999,87.651,87.621,3.63197118]
[1772793952600,8.82559091,87.65,87.621,3.63197118]
[1772793952794,3.32796999,87.651,87.621,3.63197118]
[1772793953000,8.82559005,87.65,87.621,3.63197118]
[1772793953195,3.32796999,87.651,87.621,3.63197118]
[1772793954197,3.35161945,87.649,87.61,3.63197118]
[1772793954502,3.35161945,87.647,87.602,3.63197118]
[1772793954700,3.35161945,87.645,87.6,3.02963155]
[1772793954901,3.35161945,87.632,87.591,13.90697118]
[1772793955802,3.35161945,87.629,87.591,13.90697118]
[1772793959306,3.31384085,87.62,87.58,6.66160273]
[1772793959502,3.31384085,87.62,87.58,3.63197118]
[1772793960605,3.31384085,87.62,87.58,6.66326993]
[1772793960905,13.58586288,87.618,87.58,6.66326993]
[1772793961107,13.58586288,87.618,87.581,3.63197118]
[1772793961302,3.31386288,87.618,87.583,3.63197118]
[1772793961508,3.31386288,87.639,87.583,3.63197118]
[1772793961709,3.3179571,87.637,87.583,3.63197118]
[1772793961910,3.3179571,87.635,87.583,3.63197118]
[1772793962106,3.3179571,87.633,87.583,3.63197118]
[1772793962409,3.4522276,87.631,87.583,3.63197118]
[1772793962609,3.4522276,87.629,87.583,3.63197118]
[1772793962810,13.7232276,87.624,87.585,10.276]
[1772793963011,3.4522276,87.622,87.583,3.63197118]
[1772793963506,10.272,87.616,87.583,3.63197118]
[1772793963813,3.4522276,87.615,87.578,10.276]
[1772793964813,3.4522276,87.615,87.58,3.03129875]
[1772793965112,10.271,87.623,87.582,3.86289394]
[1772793965613,12.33379499,87.622,87.582,3.86289394]
[1772793965808,12.33379499,87.621,87.584,10.276]
[1772793966015,8.82925313,87.62,87.584,10.276]
[1772793966307,8.82905548,87.619,87.584,10.276]
[1772793966507,3.50454186,87.621,87.584,10.276]
[1772793966708,8.82905548,87.62,87.584,10.276]
[1772793966908,3.50454186,87.621,87.584,10.276]
[1772793967103,3.50454186,87.621,87.584,14.13889394]
[1772793967407,3.50454186,87.621,87.585,3.86289394]
[1772793967608,8.82885479,87.62,87.585,3.86289394]
[1772793967908,3.50454186,87.621,87.585,3.86289394]
[1772793968113,8.82885479,87.62,87.585,3.86289394]
[1772793968313,3.52835115,87.619,87.585,3.86289394]
[1772793970007,10.272,87.618,87.578,10.277]
[1772793970212,3.55941534,87.617,87.578,10.277]
[1772793972317,3.55941534,87.617,87.579,3.86289394]
[1772793972920,3.55941534,87.617,87.58,3.03129875]
[1772793973110,3.55941534,87.617,87.58,6.89419269]
[1772793973313,3.55941534,87.617,87.581,3.86289394]
[1772793973519,3.55941534,87.617,87.586,3.86289394]
[1772793973712,3.58770523,87.625,87.586,3.86289394]
[1772793974020,3.58948965,87.623,87.586,3.86289394]
[1772793974216,12.41673096,87.622,87.586,3.86289394]
[1772793974412,3.58948965,87.622,87.586,3.86289394]
[1772793974821,3.58948965,87.622,87.588,10.275]
[1772793978419,3.58948965,87.622,87.588,14.13789394]
[1772793978619,3.58948965,87.622,87.589,3.86289394]
[1772793979624,3.58948965,87.622,87.59,10.275]
[1772793979826,3.60841482,87.633,87.591,3.86289394]
[1772793980020,3.60841482,87.633,87.601,3.86289394]
[1772793980320,3.60437454,87.649,87.601,3.86289394]
[1772793980521,10.27,87.637,87.601,3.86289394]
[1772793980722,3.60437454,87.647,87.592,10.275]
[1772793980921,3.60437454,87.639,87.592,10.275]
[1772793981124,3.60437454,87.637,87.592,10.275]
[1772793981426,3.60437454,87.635,87.592,10.275]
[1772793981827,3.60437454,87.63,87.586,3.86289394]
[1772793982827,10.271,87.625,87.588,10.275]
[1772793983026,13.80573702,87.625,87.586,3.86289394]
[1772793983725,3.53473702,87.624,87.586,3.86289394]
[1772793984825,3.53473702,87.624,87.587,10.275]
[1772793985026,3.53473702,87.624,87.587,14.13789394]
[1772793985927,3.5269184,87.622,87.587,3.86289394]
[1772793986125,3.5269184,87.622,87.579,10.276]
[1772793986826,10.272,87.614,87.579,10.276]
[1772793987328,3.54641792,87.609,87.566,3.86289394]
[1772793988531,3.54391577,87.607,87.566,3.86289394]
[1772793989029,10.274,87.599,87.566,3.86289394]
[1772793989227,10.274,87.599,87.56,3.03129875]
[1772793989228,3.54391577,87.607,87.571,3.86289394]
[1772793991027,10.273,87.606,87.571,3.86289394]
[1772793994036,3.53457041,87.605,87.571,3.86289394]
[1772793997627,3.53056546,87.634,87.581,3.86713277]
[1772793997825,8.8275587,87.633,87.591,3.86713277]
[1772793998029,3.53056546,87.634,87.591,3.86713277]
[1772793998232,8.82927534,87.633,87.591,3.86713277]
[1772793998425,8.82927534,87.632,87.591,3.86713277]
[1772793998628,13.80056546,87.634,87.593,3.86713277]
[1772793999435,13.80056546,87.634,87.6,6.89843152]
[1772793999832,13.80056546,87.634,87.601,3.86713277]
[1772794000235,3.53056546,87.634,87.601,3.86713277]
[1772794000931,10.269,87.644,87.601,3.86713277]
[1772794001231,3.53915921,87.645,87.611,3.86713277]
[1772794001232,8.83107502,87.643,87.611,3.86713277]
[1772794001436,3.53915921,87.645,87.611,3.86713277]
[1772794001628,8.83004666,87.644,87.611,3.86713277]
[1772794001832,10.268,87.651,87.62,3.03129875]
[1772794002029,10.268,87.651,87.62,6.89843152]
[1772794002430,3.48840876,87.668,87.631,3.86713277]
[1772794002632,8.82401951,87.667,87.64,3.03129875]
[1772794002838,3.48840876,87.682,87.641,3.86713277]
[1772794003137,8.82386473,87.681,87.641,3.86713277]
[1772794003330,10.265,87.675,87.641,3.86713277]
[1772794003527,8.82386473,87.674,87.641,3.86713277]
[1772794003729,10.265,87.675,87.641,3.86713277]
[1772794003934,8.8181397,87.674,87.641,3.86713277]
[1772794004130,10.265,87.675,87.641,3.86713277]
[1772794004336,10.265,87.673,87.641,3.86713277]
[1772794004941,3.4799359,87.672,87.63,3.03129875]
[1772794005742,10.266,87.669,87.63,3.03129875]
[1772794005938,13.7459359,87.669,87.63,3.03129875]
[1772794006145,13.7459359,87.669,87.63,6.89843152]
[1772794006443,13.7459359,87.669,87.631,3.86713277]
[1772794008542,3.53849552,87.668,87.631,3.86713277]
[1772794008744,10.266,87.666,87.64,3.03129875]
[1772794009345,13.80449552,87.666,87.64,3.03129875]
[1772794009548,3.53849552,87.665,87.64,3.03129875]
[1772794009739,3.53849552,87.665,87.631,3.86713277]
[1772794009939,3.53849552,87.661,87.62,3.03129875]
[1772794011548,3.53543812,87.656,87.62,3.03129875]
[1772794016257,3.59065233,87.654,87.62,3.03129875]
[1772794020357,10.268,87.652,87.62,3.03129875]
[1772794020653,10.268,87.652,87.62,3.02850115]
[1772794021051,3.59065233,87.654,87.62,3.02850115]
[1772794021756,3.59065233,87.654,87.621,3.76286471]
[1772794021958,3.58209692,87.665,87.63,3.02850115]
[1772794022759,13.8481753,87.664,87.63,3.02850115]
[1772794023854,10.266,87.672,87.641,3.76286471]
[1772794024060,3.5821753,87.675,87.641,3.76286471]
[1772794024261,3.02850115,87.7,87.641,3.76286471]
[1772794024463,10.265,87.68,87.65,3.02850115]
[1772794024663,10.265,87.68,87.651,3.76286471]
[1772794026259,13.84528991,87.688,87.651,3.76286471]
[1772794027363,10.263,87.695,87.66,3.02850115]
[1772794027768,10.262,87.702,87.671,3.76286471]
[1772794028364,10.261,87.709,87.671,3.76286471]
[1772794029665,10.262,87.703,87.671,3.76286471]
[1772794030363,3.99645135,87.709,87.66,3.02850115]
[1772794031360,3.99645135,87.698,87.66,3.02850115]
[1772794032966,3.99645135,87.698,87.66,6.79136586]
[1772794033168,3.99645135,87.696,87.65,6.79136586]
[1772794033365,3.99645135,87.696,87.651,3.76286471]
[1772794033562,3.99645135,87.696,87.66,3.02850115]
[1772794034756,3.99645135,87.695,87.66,3.02850115]
[1772794035162,3.99645135,87.695,87.651,10.268]
[1772794035363,3.99645135,87.689,87.641,3.76286471]
[1772794035565,3.99645135,87.689,87.65,3.02850115]
[1772794036968,3.99645135,87.686,87.65,3.02850115]
[1772794040071,3.99645135,87.686,87.643,3.76286471]
[1772794041075,3.99645135,87.684,87.643,3.76286471]
[1772794041265,3.99645135,87.684,87.65,3.02850115]
[1772794041974,3.99645135,87.684,87.651,3.76286471]
[1772794044677,3.99645135,87.684,87.65,3.02850115]
[1772794045770,14.26045135,87.684,87.65,3.02850115]
[1772794046182,14.26045135,87.684,87.651,3.76286471]
[1772794046975,3.99645135,87.684,87.651,3.76286471]
[1772794048379,3.99645135,87.691,87.651,14.03086471]
[1772794048778,3.99645135,87.688,87.651,14.03086471]
[1772794049982,10.264,87.686,87.651,14.03086471]
[1772794050180,14.26045135,87.686,87.651,14.03086471]
[1772794050875,14.26045135,87.686,87.651,3.76286471]
[1772794051075,3.99645135,87.681,87.65,3.02850115]
[1772794051379,3.99645135,87.681,87.645,10.269]
[1772794051574,3.99645135,87.681,87.65,3.02850115]
[1772794052375,3.65153355,87.686,87.651,14.10950528]
[1772794052582,3.65153355,87.686,87.652,3.84150528]
[1772794054077,10.264,87.687,87.653,10.268]
[1772794054282,10.263,87.693,87.654,3.84150528]
[1772794054684,10.263,87.693,87.661,3.84150528]
[1772794056386,3.65153355,87.692,87.651,3.84150528]
[1772794056586,3.65153355,87.708,87.661,3.84150528]
[1772794058484,3.65153355,87.706,87.661,3.84150528]
[1772794058781,3.65153355,87.706,87.66,3.02850115]
[1772794058782,10.262,87.703,87.664,3.84150528]
[1772794058988,3.65153355,87.706,87.651,3.84150528]
[1772794059186,3.65153355,87.699,87.65,3.02850115]
[1772794059986,3.65153355,87.691,87.652,14.10950528]
[1772794061786,10.263,87.69,87.653,3.84150528]
[1772794062588,13.91453355,87.69,87.653,3.84150528]
[1772794063189,10.264,87.683,87.653,3.84150528]
[1772794063489,3.65153355,87.69,87.653,3.84150528]
[1772794063891,3.65153355,87.719,87.66,3.02850115]
[1772794064485,10.263,87.697,87.661,14.10850528]
[1772794064689,10.263,87.697,87.662,3.84150528]
[1772794064989,3.65153355,87.702,87.662,3.84150528]
[1772794065191,10.262,87.701,87.664,3.84150528]
[1772794065787,10.261,87.707,87.668,10.266]
[1772794066086,3.65153355,87.719,87.681,3.84150528]
[1772794067892,3.65153355,87.719,87.682,3.84150528]
[1772794068392,10.26,87.718,87.682,3.84150528]
[1772794068694,3.65153355,87.717,87.67,3.02850115]
[1772794069095,10.261,87.707,87.67,3.02850115]
[1772794070597,3.65153355,87.717,87.671,3.84150528]
[1772794070897,3.65153355,87.717,87.681,3.84150528]
[1772794071498,3.65153355,87.717,87.69,3.02850115]
[1772794071792,3.65153355,87.717,87.681,14.10550528]
[1772794072096,3.65153355,87.717,87.682,3.84150528]
[1772794074498,3.65153355,87.726,87.69,3.02850115]
[1772794075301,13.91053355,87.725,87.69,3.02850115]
[1772794076702,3.65153355,87.721,87.674,3.84150528]
[1772794077002,3.65153355,87.721,87.68,3.02850115]
[1772794077202,3.65153355,87.721,87.674,3.84150528]
[1772794077807,13.91153355,87.718,87.676,3.84150528]
[1772794078105,13.91153355,87.718,87.68,3.02850115]
[1772794079704,10.261,87.711,87.68,3.02850115]
[1772794080002,10.261,87.711,87.676,3.84150528]
[1772794081907,10.26,87.717,87.676,3.84150528]
[1772794082108,3.80215228,87.716,87.676,3.84150528]
[1772794082900,14.06315228,87.712,87.676,3.84150528]
[1772794083100,3.80215228,87.711,87.676,3.84150528]
[1772794083302,3.80215228,87.711,87.675,10.265]
[1772794083602,3.02450475,87.71,87.667,10.266]
[1772794084010,3.80215228,87.709,87.667,10.266]
[1772794084811,10.262,87.704,87.667,10.266]
[1772794085012,3.80215228,87.709,87.667,10.266]
[1772794085407,3.80215228,87.709,87.667,14.24649172]
[1772794085609,3.80215228,87.709,87.669,10.266]
[1772794086106,3.80215228,87.709,87.668,3.98049172]
[1772794086306,3.80215228,87.719,87.668,3.98049172]
[1772794086616,3.80215228,87.719,87.67,3.02450475]
[1772794086808,3.80215228,87.719,87.671,3.98049172]
[1772794087710,3.80215228,87.719,87.68,7.00499647]
[1772794087912,10.26,87.717,87.68,7.00499647]
[1772794088816,3.80215228,87.719,87.686,10.264]
[1772794089314,3.80215228,87.738,87.691,3.98049172]
[1772794090116,3.80215228,87.735,87.692,10.263]
[1772794091618,3.80215228,87.735,87.693,3.98049172]
[1772794091818,10.259,87.733,87.693,3.98049172]
[1772794093016,10.259,87.733,87.695,3.98049172]
[1772794093215,3.80215228,87.735,87.701,3.98049172]
[1772794093413,194.757538,87.739,87.701,3.98049172]
[1772794093717,194.757538,87.739,87.71,3.02450475]
[1772794094114,10.256,87.755,87.713,3.98049172]
[1772794096816,14.05815228,87.755,87.713,3.98049172]
[1772794097018,10.256,87.75,87.713,3.98049172]
[1772794097218,14.05815228,87.75,87.713,3.98049172]
[1772794097418,3.80215228,87.749,87.702,3.98049172]
[1772794097619,10.258,87.737,87.702,3.98049172]
[1772794097816,14.06015228,87.737,87.702,3.98049172]
[1772794098015,11.48751966,87.791,87.689,3.98049172]
[1772794098016,3.80215228,87.729,87.689,3.98049172]
[1772794098219,10.259,87.725,87.689,3.98049172]
[1772794100016,3.80215228,87.729,87.689,3.98049172]
[1772794101622,3.80215228,87.729,87.69,3.02450475]
[1772794104323,3.80215228,87.726,87.69,3.02450475]
[1772794104622,3.80215228,87.726,87.689,3.98049172]
[1772794104822,3.80215228,87.719,87.675,3.98049172]
[1772794106020,3.80215228,87.716,87.675,3.98049172]
[1772794106526,3.80215228,87.716,87.671,10.266]
[1772794106527,3.02450475,87.71,87.664,3.98049172]
[1772794106824,3.80215228,87.699,87.651,3.98049172]
[1772794107825,14.06415228,87.699,87.655,14.24749172]
[1772794108326,3.80215228,87.698,87.655,14.24749172]
[1772794109729,3.80215228,87.698,87.657,10.267]
[1772794110025,3.80215228,87.698,87.658,3.98049172]
[1772794110725,3.80215228,87.698,87.66,3.02450475]
[1772794110929,3.80215228,87.698,87.661,3.98049172]
[1772794111330,3.80215228,87.698,87.662,3.98049172]
[1772794115635,3.80215228,87.698,87.666,3.74161543]
[1772794118237,3.9027615,87.697,87.66,3.02450475]
[1772794119434,10.264,87.689,87.655,3.74161543]
[1772794119637,3.9027615,87.688,87.655,3.74161543]
[1772794120334,3.9027615,87.701,87.66,3.02450475]
[1772794120636,20.516,87.74,87.661,3.74161543]
[1772794120637,3.9027615,87.711,87.661,3.74161543]
[1772794121738,10.262,87.705,87.663,10.267]
[1772794121939,10.262,87.705,87.664,3.74161543]
[1772794122739,10.262,87.705,87.67,3.02450475]
[1772794124939,14.1647615,87.705,87.67,3.02450475]
[1772794125142,3.9027615,87.699,87.664,3.74161543]
[1772794125338,3.9027615,87.699,87.663,10.267]
[1772794125542,3.9027615,87.699,87.653,3.74161543]
[1772794125941,14.1657615,87.692,87.653,3.74161543]
[1772794126141,14.1657615,87.692,87.66,3.02450475]
[1772794126745,3.9027615,87.691,87.66,3.02450475]
[1772794130645,3.9027615,87.689,87.66,3.02450475]
[1772794130837,3.9027615,87.689,87.653,3.74161543]
[1772794131145,3.9027615,87.689,87.655,10.268]
[1772794131351,3.9027615,87.686,87.642,3.74161543]
[1772794131546,3.9027615,87.686,87.64,3.02450475]
[1772794131747,3.9027615,87.686,87.641,3.74161543]
[1772794132345,3.9027615,87.686,87.65,3.02450475]
[1772794132750,10.264,87.682,87.65,3.02450475]
[1772794136049,3.9027615,87.686,87.66,3.02450475]
[1772794136355,3.9027615,87.709,87.66,3.02450475]
[1772794136855,3.9027615,87.709,87.651,3.74161543]
[1772794137055,3.9027615,87.69,87.651,3.74161543]
[1772794141568,3.95059597,87.685,87.651,3.74161543]
[1772794141761,3.95059597,87.685,87.65,3.02450475]
[1772794142465,3.95059597,87.685,87.65,3.02647167]
[1772794144172,3.95059597,87.685,87.64,3.02647167]
[1772794144368,3.95059597,87.675,87.64,3.02647167]
[1772794145864,10.264,87.683,87.641,3.98594518]
[1772794146070,10.264,87.683,87.65,3.02647167]
[1772794152874,3.95059597,87.68,87.642,10.269]
[1772794153772,3.95059597,87.678,87.642,10.269]
[1772794154772,10.265,87.677,87.642,10.269]
[1772794154970,3.95059597,87.676,87.645,10.269]
[1772794156071,10.264,87.684,87.65,3.02647167]
[1772794157465,3.95059597,87.681,87.647,3.98594518]
[1772794158369,10.265,87.68,87.647,3.98594518]
[1772794160175,10.265,87.673,87.638,3.98594518]
[1772794160373,3.95059597,87.679,87.641,3.98594518]
[1772794161773,14.21559597,87.679,87.642,10.269]
[1772794162373,3.95059597,87.678,87.642,10.269]
[1772794163372,3.95059597,87.678,87.643,3.98594518]
[1772794164076,3.95059597,87.678,87.646,3.98594518]
[1772794164268,3.95059597,87.678,87.65,3.02647167]
[1772794165069,3.95059597,87.678,87.64,13.29547167]
[1772794166777,3.95059597,87.676,87.64,13.29547167]
[1772794167277,3.95059597,87.676,87.634,10.27]
[1772794168874,3.95059597,87.674,87.63,3.02647167]
[1772794169074,3.95059597,87.674,87.631,3.98594518]
[1772794170780,3.95059597,87.671,87.634,10.27]
[1772794171683,13.95924718,87.67,87.631,3.98594518]
[1772794171879,3.69324718,87.669,87.631,3.98594518]
[1772794172679,3.86720043,87.662,87.62,3.02647167]
[1772794172884,3.86720043,87.659,87.61,3.02647167]
[1772794173284,3.86720043,87.657,87.606,3.70475323]
[1772794173484,3.86720043,87.643,87.61,3.02647167]
[1772794176585,3.86720043,87.643,87.611,10.273]
[1772794179690,3.86720043,87.643,87.61,3.02647167]
[1772794180288,3.86720043,87.643,87.611,10.273]
[1772794181392,3.86720043,87.658,87.63,3.02647167]
[1772794184087,10.267,87.664,87.63,6.7312249]
[1772794187185,10.267,87.658,87.63,3.02647167]
[1772794193096,3.86720043,87.662,87.63,6.7312249]
[1772794193394,3.86720043,87.662,87.631,13.97475323]
[1772794193594,3.86720043,87.662,87.64,3.02647167]
[1772794196597,3.86720043,87.662,87.631,3.70475323]
[1772794198995,3.86720043,87.66,87.63,3.02647167]
[1772794199200,3.86720043,87.66,87.62,3.02647167]
[1772794199402,3.86720043,87.649,87.591,3.70475323]
[1772794199602,3.86720043,87.639,87.59,3.02647167]
[1772794199802,3.86720043,87.634,87.59,3.02647167]
[1772794200298,3.86720043,87.625,87.59,3.02647167]
[1772794200900,3.86720043,87.642,87.61,3.02647167]
[1772794201292,21.30231479,87.685,87.61,3.02647167]
[1772794201293,3.86720043,87.659,87.611,3.70475323]
[1772794201496,3.86720043,87.657,87.611,3.70475323]
[1772794201700,3.84866852,87.655,87.611,3.70475323]
[1772794201902,3.84866852,87.653,87.611,3.70475323]
[1772794202102,3.84866852,87.651,87.611,3.70475323]
[1772794202404,12.66751847,87.65,87.611,3.70475323]
[1772794202702,10.269,87.645,87.611,3.70475323]
[1772794202999,3.84866852,87.667,87.63,3.02647167]
[1772794203205,3.84866852,87.665,87.63,3.02647167]
[1772794203402,3.84866852,87.663,87.63,3.02647167]
[1772794203698,10.267,87.661,87.63,3.02647167]
[1772794204604,10.267,87.661,87.63,3.02806809]
[1772794205707,10.268,87.652,87.621,3.85070351]
[1772794206507,3.84866852,87.659,87.621,3.85070351]
[1772794207512,10.268,87.655,87.621,3.85070351]
[1772794207809,3.84866852,87.659,87.621,3.85070351]
[1772794208009,3.84866852,87.659,87.63,3.02806809]
[1772794208407,3.84866852,87.657,87.63,3.02806809]
[1772794209110,3.84866852,87.655,87.62,3.02806809]
[1772794209513,3.84866852,87.679,87.63,3.02806809]
[1772794209813,3.84866852,87.677,87.63,3.02806809]
[1772794210009,3.84866852,87.675,87.63,3.02806809]
[1772794210204,3.84866852,87.673,87.63,3.02806809]
[1772794210404,3.84866852,87.671,87.63,3.02806809]
[1772794210609,3.84866852,87.669,87.63,3.02806809]
[1772794210809,10.267,87.66,87.63,3.02806809]
[1772794211908,10.267,87.66,87.621,3.85070351]
[1772794212108,10.267,87.66,87.62,3.02806809]
[1772794212109,14.11466852,87.667,87.623,3.85070351]
[1772794212310,8.83680218,87.666,87.63,3.02806809]
[1772794212504,8.83680218,87.665,87.63,3.02806809]
[1772794212710,3.84866852,87.667,87.63,3.02806809]
[1772794212914,3.84866852,87.664,87.623,3.85070351]
[1772794213113,3.84866852,87.662,87.623,3.85070351]
[1772794213814,10.267,87.661,87.623,3.85070351]
[1772794214014,3.84866852,87.66,87.623,3.85070351]
[1772794214916,10.267,87.656,87.623,3.85070351]
[1772794215311,3.84866852,87.66,87.623,3.85070351]
[1772794218426,3.84866852,87.66,87.624,14.12170351]
[1772794218619,10.267,87.659,87.624,14.12170351]
[1772794221028,10.267,87.659,87.63,3.02806809]
[1772794222328,10.267,87.656,87.63,3.02806809]
[1772794222825,10.267,87.656,87.625,3.85070351]
[1772794223524,3.84866852,87.658,87.625,3.85070351]
[1772794223828,3.84866852,87.658,87.63,3.02806809]
[1772794224823,10.267,87.662,87.631,3.85070351]
[1772794225729,10.266,87.668,87.631,3.85070351]
[1772794226029,3.84866852,87.666,87.631,3.85070351]
[1772794226229,3.84866852,87.664,87.62,6.8787716]
[1772794226430,3.84866852,87.662,87.62,6.8787716]
[1772794226730,3.84866852,87.66,87.62,6.8787716]
[1772794228829,10.267,87.657,87.62,6.8787716]
[1772794229123,3.84866852,87.66,87.621,3.85070351]
[1772794230431,3.84866852,87.66,87.625,3.85070351]
[1772794231131,10.267,87.659,87.625,3.85070351]
[1772794231330,3.84866852,87.66,87.62,3.02806809]
[1772794231530,3.84866852,87.658,87.614,3.85070351]
[1772794231731,3.95058791,87.656,87.614,3.85070351]
[1772794231927,3.78158067,87.654,87.614,3.85070351]
[1772794232133,8.84626904,87.653,87.614,3.85070351]
[1772794232430,8.84626904,87.652,87.614,3.85070351]
[1772794232731,3.78158067,87.648,87.61,3.02806809]
[1772794233033,3.78158067,87.646,87.61,3.02806809]
[1772794233223,10.269,87.642,87.604,10.273]
[1772794233931,3.78158067,87.637,87.603,3.88714833]
[1772794234627,10.269,87.646,87.605,3.88714833]
[1772794235132,14.05058067,87.646,87.605,3.88714833]
[1772794236434,14.05058067,87.646,87.61,3.02806809]
[1772794237330,10.267,87.657,87.621,3.88714833]
[1772794238231,3.78158067,87.653,87.618,10.272]
[1772794238538,3.78158067,87.651,87.618,10.272]
[1772794240536,3.78158067,87.648,87.6,3.02806809]
[1772794240738,3.78158067,87.646,87.6,3.02806809]
[1772794240937,3.78158067,87.644,87.6,3.02806809]
[1772794241139,3.78158067,87.642,87.6,3.02806809]
[1772794241338,3.78158067,87.64,87.6,3.02806809]
[1772794241735,10.27,87.637,87.59,3.02806809]
[1772794242038,3.78158067,87.635,87.59,3.02806809]
[1772794242338,3.78158067,87.63,87.592,10.275]
[1772794242939,10.271,87.629,87.592,10.275]